{"text_format":"3","workbook":"xlsx","n_sheets":5,"sheets":["Информация о Чемпионате","Общая инфраструктура","Рабочее место конкурсантов","Расходные материалы","Личный инструмент конкурсанта"],"read":"whole","date_system":"1900"}

{"sheet":"Информация о Чемпионате","index":0,"n_rows":23,"n_cols":2,"rows_kept":23}
[]
[]
["Компетенция","Технологии информационного моделирования BIM\n"]
["Наименование этапа Чемпионата","Региональный этап Чемпионата по профессиональному мастерству \"Профессионалы\""]
["Субъект РФ (регион проведения)","Республика Карелия"]
["Базовая организация расположения конкурсной площадки","ГАПОУ РК \"Петрозаводский архитектурно-строительный техникум\""]
["Адрес конкурсной площадки","г. Петрозаводск, пр. Первомайский, д. 56"]
["Даты проведения","13.02.2026-20.02.2026"]
["Главный эксперт","Белокурова Ангелина Владимировна"]
["Электронная почта ГЭ","Angelina-Bel@yandex.ru"]
["Моб.телефон ГЭ",79114053641]
["Технический администратор площадки","Платонов Вадим Николаевич"]
["Электронная почта ТАП","ptghplatonov@gmail.com"]
["Моб.телефон ТАП",79212288780]
["Количество конкурсантов ",5]
["Количество рабочих мест",5]
["Количество экспертов (ГЭ+ЭН+ИЭ)+ТАП",8]
[]
[]
["ЭН - эксперт-наставник"]
["ГЭ - главный эксперт"]
["ИЭ - индустриальный эксперт"]
["ТАП - технический администратор площадки"]

{"sheet":"Общая инфраструктура","index":1,"n_rows":121,"n_cols":8,"rows_kept":121,"merged":[[0,0,0,7],[1,0,1,7],[2,0,2,7],[3,0,3,7],[4,0,4,7],[5,0,5,7],[6,0,6,1],[6,2,6,7],[7,0,7,2],[7,3,7,7],[8,0,8,1],[8,2,8,7],[9,0,9,1],[9,2,9,3],[9,4,9,5],[9,6,9,7],[10,0,10,1],[10,2,10,3],[10,4,10,5],[10,6,10,7],[11,0,11,1],[11,2,11,7],[12,0,12,1],[12,2,12,7],[13,0,13,1],[13,2,13,7],[14,0,14,1],[14,2,14,7],[15,0,15,7],[16,0,16,7],[17,0,17,7],[18,0,18,7],[19,0,19,7],[20,0,20,7],[21,0,21,7],[22,0,22,7],[23,0,23,7],[24,0,24,7],[50,0,50,7],[51,0,51,7],[52,0,52,7],[53,0,53,7],[54,0,54,7],[55,0,55,7],[56,0,56,7],[57,0,57,7],[58,0,58,7],[59,0,59,7],[66,0,66,7],[67,0,67,7],[68,0,68,7],[69,0,69,7],[70,0,70,7],[71,0,71,7],[72,0,72,7],[73,0,73,7],[74,0,74,7],[75,0,75,7],[99,0,99,7],[105,0,105,7],[106,0,106,7],[107,0,107,7],[108,0,108,7],[109,0,109,7],[110,0,110,7],[111,0,111,7],[112,0,112,7],[113,0,113,7],[114,0,114,7]]}
["ПРОЕКТ"]
["Инфраструктурный лист для оснащения конкурсной площадки"]
[{"$f":"'Информация о Чемпионате'!B4","v":"Региональный этап Чемпионата по профессиональному мастерству \"Профессионалы\""}]
["по компетенции"]
[{"$f":"'Информация о Чемпионате'!B3","v":"Технологии информационного моделирования BIM\n"}]
["Основная информация о конкурсной площадке:"]
["Субъект Российской Федерации:",null,{"$f":"'Информация о Чемпионате'!B5","v":"Республика Карелия"}]
["Базовая организация расположения конкурсной площадки:",null,null,{"$f":"'Информация о Чемпионате'!B6","v":"ГАПОУ РК \"Петрозаводский архитектурно-строительный техникум\""}]
["Адрес базовой организации: ",null,{"$f":"'Информация о Чемпионате'!B7","v":"г. Петрозаводск, пр. Первомайский, д. 56"}]
["Главный эксперт: ",null,{"$f":"'Информация о Чемпионате'!B9","v":"Белокурова Ангелина Владимировна"},null,{"$f":"'Информация о Чемпионате'!B10","v":"Angelina-Bel@yandex.ru"},null,{"$f":"'Информация о Чемпионате'!B11","v":79114053641}]
["Технический администратор площадки: ",null,{"$f":"'Информация о Чемпионате'!B12","v":"Платонов Вадим Николаевич"},null,{"$f":"'Информация о Чемпионате'!B13","v":"ptghplatonov@gmail.com"},null,{"$f":"'Информация о Чемпионате'!B14","v":79212288780}]
["Количество экспертов (ЭН+ГЭ+ИЭ) + ТАП:",null,{"$f":"'Информация о Чемпионате'!B17","v":8}]
["Количество конкурсантов: ",null,{"$f":"'Информация о Чемпионате'!B15","v":5}]
["Количество рабочих мест: ",null,{"$f":"'Информация о Чемпионате'!B16","v":5}]
["Даты проведения: ",null,{"$f":"'Информация о Чемпионате'!B8","v":"13.02.2026-20.02.2026"}]
["Общая зона конкурсной площадки (оборудование, инструмент, мебель)"]
["Требования к обеспечению зоны (коммуникации, площадь, сети, количество рабочих мест и др.): "]
["Площадь зоны: не менее ___ кв.м."]
["Освещение: Допустимо верхнее искусственное освещение ( не менее ___ люкс) "]
["Интернет : Подключение  с возможностью подключения к проводному интернету \t"]
["Электричество:  подключения к сети  по 220 Вольт"]
["Контур заземления для электропитания и сети слаботочных подключений (при необходимости) : не требуется"]
["Покрытие пола: линолеум  - на всю зону"]
["Подведение/ отведение ГХВС (при необходимости): не требуется"]
["Подведение сжатого воздуха (при необходимости): не требуется"]
["№","Наименование ","Краткие (рамочные) технические характеристики","Вид","Количество","Единица измерения","Итоговое количество","Рекомендации представителей индустрии (указывается конкретное оборудование)"]
[1,"Стол","(ШхГхВ) 1200х3000х750","Мебель",1,"шт",1]
[3,"Стул ","Cтул офисный со спинкой на ножках","Мебель",1,"шт",10]
[4,"Компьютер ","\nпроцессор: AMD Ryzen 3 3200G\nоперативная память: DDR4 32 ГБ\nвидеокарта: MSI GeForce RTX5050 8192MB\nтвердотельный накопитель: SSD 240GB\nоперационная система Win 10 Pro  ","Оборудование IT",1,"шт",1]
[5,"Монитор","Monitor: Philips 223V5L диагональ 22\" , разрешение 1920x1080 Full HD (16:9) ","IT-оборудование",1,"шт",1]
[6,"Клавиатура","офисная, проводная","Оборудование IT",1,"шт",1]
[7,"Мышь компьютерная - тип 2","офисная, проводная","Оборудование IT",1,"шт",1]
[8,"Удлинители сетевые","6 розеток, 5 метров","IT-оборудование",1,"шт",1]
[9,"Кабель для монитора DisplayPort-HDMI","DisplayPort-HDMI","IT-оборудование",1,"шт",1]
[10,"Лазерный принтер (МФУ)","Oki C5850","Оборудование IT",1,"шт",1]
[11,"Плазменная панель или LED телевизор","Prometean AP7-A75","IT-оборудование",1,"шт",1]
[12,"Аптечка первой медицинской помощи","Базовая","Безопасность и здоровье"]
[13,"Огнетушитель","Порошковый","Безопасность и здоровье"]
[14,"Мусорная корзина","14л","Оборудование и инструменты",1,"шт",1]
[15,"Кулер 19 л (холодная/горячая вода)","Офисный","Оборудование и инструменты",1,"шт",1]
[16,"Программное обеспечение для BIM-моделирования","- программное обеспечение обеспечивающее совместную одновременную работу над проектом;\n- параллельная работа над одним BIM-проектом;\n- наличие механизма синхронизации BIM-модели;\n- наличие Renga Colaboration Server","Программное обеспечение",1,"шт",1,"Renga"]
[17,"Программное обеспечение для создания среды общих данных","- наличие модуля TASQ для календарно-ресурсного планирования;","Программное обеспечение",1,"шт",1,"Pilot-BIM (с модулем TASQ)"]
[18,"Программное обеспечение для координации BIM-моделей","- Автоматизированная сборка консолидированной BIM-модели из частей, созданных в разных CAD-системах;\n- автоматическая проверка на коллизии;\n- сравнение версий модели;\n- ведение истории изменения модели. ","Программное обеспечение",1,"шт",1,"Pilot-BIM "]
[19,"Комплект разработчика шаблона стиля","- на языке Lua","Программное обеспечение",1,"шт",1,"Renga STDL SDK"]
[20,"Редактор кода для кроссплатформенной разработки веб- и облачных приложений",null,"Программное обеспечение",1,"шт",1,"Visual Studio Code с  Snippet LUA"]
[21,"Программное обеспечение для просмотра BIM-моделей","Только просмотр","Программное обеспечение",1,"шт",1,"Pilot-BIM "]
[22,"Программное обеспечение для проверки BIM-модели на коллизии",null,"Программное обеспечение",1,"шт",1,"Pilot-BIM "]
[23,"Программное обеспечение для просмотра файлов с расширением pdf","Только просмотр","Программное обеспечение",1,"шт",1,"Acrobat Reader "]
[24,"Программное обеспечение для просмотра файлов с расширением doc (docx), PowerPoint (ppt)","Просмотр и редактирование файлов формата doc (docx), PowerPoint (ppt)","Программное обеспечение",1,"шт",1,"MS Office"]
[25,"Операционная система","Windows Professional","Программное обеспечение",1,"шт",1]
["Комната Конкурсантов (оборудование, инструмент, мебель) (по количеству конкурсантов)"]
["Требования к обеспечению зоны (коммуникации, площадь, сети, количество рабочих мест и др.): "]
["Площадь зоны: не менее ___ кв.м."]
["Освещение: Допустимо верхнее искусственное освещение ( не менее ___ люкс) "]
["Интернет : Подключение  с возможностью подключения к проводному интернету \t"]
["Электричество:  подключения к сети  по 220 Вольт"]
["Контур заземления для электропитания и сети слаботочных подключений (при необходимости) : не требуется"]
["Покрытие пола: линолеум  - на всю зону"]
["Подведение/ отведение ГХВС (при необходимости): не требуется"]
["Подведение сжатого воздуха (при необходимости): не требуется"]
["№","Наименование ","Краткие (рамочные) технические характеристики","Вид","Количество","Единица измерения","Итоговое количество","Рекомендации представителей индустрии (указывается конкретное оборудование)"]
[1,"Стол - тип 2","1400х650х750 мм","Мебель",1,"шт",6]
[2,"Стул - тип 1","Cтул офисный со спинкой на ножках","Мебель",1,"шт",12]
[3,"Вешалка","гардероб","Мебель",1,"шт",1]
[4,"Фильтр сетевой","5 розеток, 2-3 м","Оборудование IT",1,"шт",1]
[5,"Мусорная корзина","Офисная","Мебель",1,"шт",1]
["Комната Экспертов (включая комнату Главного эксперта) (оборудование, инструмент, мебель) (по количеству экспертов)"]
["Требования к обеспечению зоны (коммуникации, площадь, сети, количество рабочих мест и др.): "]
["Площадь зоны: не менее ___ кв.м."]
["Освещение: Допустимо верхнее искусственное освещение ( не менее ___ люкс) "]
["Интернет : Подключение  с возможностью подключения к проводному интернету \t"]
["Электричество:  подключения к сети  по 220 Вольт"]
["Контур заземления для электропитания и сети слаботочных подключений (при необходимости) : не требуется"]
["Покрытие пола: линолеум  - на всю зону"]
["Подведение/ отведение ГХВС (при необходимости): не требуется"]
["Подведение сжатого воздуха (при необходимости): не требуется"]
["№","Наименование ","Краткие (рамочные) технические характеристики","Вид","Количество","Единица измерения","Итоговое количество","Рекомендации представителей индустрии (указывается конкретное оборудование)"]
[1,"Стол ","(ШхГхВ) 1200х700х750","Мебель",1,"шт",8]
[2,"Стул ","Cтул офисный со спинкой на ножках","Мебель",1,"шт",8]
[4,"Компьютер ","\nпроцессор: AMD Ryzen 3 3200G\nоперативная память: DDR4 8 ГБ\nвидеокарта: AMD Radeon(TM) Vega 8 Graphics\nтвердотельный накопитель: SSD 240GB\nоперационная система Win 10 Pro  ","Оборудование IT",1,"шт",8]
[5,"Монитор","Monitor: ASUS VP228 диагональ 22\" , разрешение 1920x1080 Full HD (16:9) ","IT-оборудование",1,"шт",8]
[6,"Клавиатура","офисная, проводная","Оборудование IT",1,"шт",8]
[7,"Мышь компьютерная ","офисная, проводная","Оборудование IT",1,"шт",8]
[8,"Удлинители сетевые","6 розеток, 5 метров","IT-оборудование",1,"шт",8]
[9,"Кабель для монитора DisplayPort-HDMI","DisplayPort-HDMI","IT-оборудование",1,"шт",8]
[10,"Лазерный принтер (МФУ)","Oki C5850","Оборудование IT",1,"шт",1]
[11,"Вешалка"," гардероб","Мебель",1,"шт",1]
[12,"Мусорная корзина","Офисная","Мебель",1,"шт",2]
[13,"Огнетушитель","Порошковый","Безопасность и здоровье",1,"шт",1]
[14,"Программное обеспечение для BIM-моделирования","- программное обеспечение обеспечивающее совместную одновременную работу над проектом;\n- параллельная работа над одним BIM-проектом;\n- наличие механизма синхронизации BIM-модели;\n- наличие Renga Colaboration Server","Программное обеспечение",1,"шт",8,"Renga"]
[15,"Программное обеспечение для создания среды общих данных","- наличие модуля TASQ для календарно-ресурсного планирования;","Программное обеспечение",1,"шт",8,"Pilot-BIM (с модулем TASQ)"]
[16,"Программное обеспечение для координации BIM-моделей","- Автоматизированная сборка консолидированной BIM-модели из частей, созданных в разных CAD-системах;\n- автоматическая проверка на коллизии;\n- сравнение версий модели;\n- ведение истории изменения модели.","Программное обеспечение",1,"шт",8,"Pilot-BIM "]
[17,"Комплект разработчика шаблона стиля","- на языке Lua","Программное обеспечение",1,"шт",8,"Renga STDL SDK"]
[18,"Редактор кода для кроссплатформенной разработки веб- и облачных приложений",null,"Программное обеспечение",1,"шт",8,"Visual Studio Code с  Snippet LUA"]
[19,"Программное обеспечение для просмотра BIM-моделей","Только просмотр","Программное обеспечение",1,"шт",8,"Pilot-BIM "]
[20,"Программное обеспечение для проверки BIM-модели на коллизии",null,"Программное обеспечение",1,"шт",8,"Pilot-BIM "]
[21,"Программное обеспечение для просмотра файлов с расширением pdf","Только просмотр","Программное обеспечение",1,"шт",8,"Acrobat Reader "]
[22,"Программное обеспечение для просмотра файлов с расширением doc (docx), PowerPoint (ppt)","Просмотр и редактирование файлов формата doc (docx), PowerPoint (ppt)","Программное обеспечение",1,"шт",8,"MS Office"]
[23,"Операционная система","Windows Professional","Программное обеспечение",1,"шт",8]
["Охрана труда и техника безопасности"]
["№","Наименование ","Краткие (рамочные) технические характеристики","Вид","Количество","Единица измерения","Итоговое количество","Рекомендации представителей индустрии (указывается конкретное оборудование)"]
[1,"Аптечка","Базовая","Безопасность и здоровье",1,"шт",1]
[2,"Огнетушитель","Порошковый","Безопасность и здоровье",1,"шт",1]
[3,"Кулер 19 л (холодная/горячая вода)","Офисный","Оборудование и инструменты",1,"шт",1]
[4,"Стаканчики для воды","Подходящие под кулер","Канцелярские товары",100,"шт",100]
["Складское помещение "]
["Требования к обеспечению зоны (коммуникации, площадь, сети, количество рабочих мест и др.): "]
["Площадь зоны: не менее ___ кв.м."]
["Освещение: Допустимо верхнее искусственное освещение ( не менее ___ люкс) "]
["Интернет : Подключение  с возможностью подключения к проводному интернету \t"]
["Электричество:  подключения к сети  по 220 Вольт"]
["Контур заземления для электропитания и сети слаботочных подключений (при необходимости) : не требуется"]
["Покрытие пола: линолеум  - на всю зону"]
["Подведение/ отведение ГХВС (при необходимости): не требуется"]
["Подведение сжатого воздуха (при необходимости): не требуется"]
["№","Наименование ","Краткие (рамочные) технические характеристики","Вид","Количество","Единица измерения","Итоговое количество","Рекомендации представителей индустрии (указывается конкретное оборудование)"]
[1]
[2]
[3]
[4]
[5]

{"sheet":"Рабочее место конкурсантов","index":2,"n_rows":50,"n_cols":8,"rows_kept":50,"merged":[[0,0,0,7],[1,0,1,7],[2,0,2,7],[3,0,3,7],[4,0,4,7],[5,0,5,7],[6,0,6,1],[6,2,6,7],[7,0,7,2],[7,3,7,7],[8,0,8,1],[8,2,8,7],[9,0,9,1],[9,2,9,3],[9,4,9,5],[9,6,9,7],[10,0,10,1],[10,2,10,3],[10,4,10,5],[10,6,10,7],[11,0,11,1],[11,2,11,7],[12,0,12,1],[12,2,12,7],[13,0,13,1],[13,2,13,7],[14,0,14,1],[14,2,14,7],[15,0,15,7],[16,0,16,7],[17,0,17,7],[18,0,18,7],[19,0,19,7],[20,0,20,7],[21,0,21,7],[22,0,22,7],[23,0,23,7],[24,0,24,7],[44,0,44,7]]}
["ПРОЕКТ"]
["Инфраструктурный лист для оснащения конкурсной площадки"]
[{"$f":"'Информация о Чемпионате'!B4","v":"Региональный этап Чемпионата по профессиональному мастерству \"Профессионалы\""}]
["по компетенции"]
[{"$f":"'Информация о Чемпионате'!B3","v":"Технологии информационного моделирования BIM\n"}]
["Основная информация о конкурсной площадке:"]
["Субъект Российской Федерации:",null,{"$f":"'Информация о Чемпионате'!B5","v":"Республика Карелия"}]
["Базовая организация расположения конкурсной площадки:",null,null,{"$f":"'Информация о Чемпионате'!B6","v":"ГАПОУ РК \"Петрозаводский архитектурно-строительный техникум\""}]
["Адрес базовой организации: ",null,{"$f":"'Информация о Чемпионате'!B7","v":"г. Петрозаводск, пр. Первомайский, д. 56"}]
["Главный эксперт: ",null,{"$f":"'Информация о Чемпионате'!B9","v":"Белокурова Ангелина Владимировна"},null,{"$f":"'Информация о Чемпионате'!B10","v":"Angelina-Bel@yandex.ru"},null,{"$f":"'Информация о Чемпионате'!B11","v":79114053641}]
["Технический администратор площадки: ",null,{"$f":"'Информация о Чемпионате'!B12","v":"Платонов Вадим Николаевич"},null,{"$f":"'Информация о Чемпионате'!B13","v":"ptghplatonov@gmail.com"},null,{"$f":"'Информация о Чемпионате'!B14","v":79212288780}]
["Количество экспертов (ЭН+ГЭ+ИЭ) + ТАП:",null,{"$f":"'Информация о Чемпионате'!B17","v":8}]
["Количество конкурсантов: ",null,{"$f":"'Информация о Чемпионате'!B15","v":5}]
["Количество рабочих мест: ",null,{"$f":"'Информация о Чемпионате'!B16","v":5}]
["Даты проведения: ",null,{"$f":"'Информация о Чемпионате'!B8","v":"13.02.2026-20.02.2026"}]
["Рабочее место Конкурсанта (основное оборудование, вспомогательное оборудование, инструмент (по количеству рабочих мест))"]
["Требования к обеспечению зоны (коммуникации, площадь, сети, количество рабочих мест и др.): "]
["Площадь зоны: не менее ___ кв.м."]
["Освещение: Допустимо верхнее искусственное освещение ( не менее ___ люкс) "]
["Интернет : Подключение  с возможностью подключения к проводному интернету \t"]
["Электричество:  подключения к сети  по 220 Вольт"]
["Контур заземления для электропитания и сети слаботочных подключений (при необходимости) : не требуется"]
["Покрытие пола: линолеум  - на всю зону"]
["Подведение/ отведение ГХВС (при необходимости): не требуется"]
["Подведение сжатого воздуха (при необходимости): не требуется"]
["№","Наименование ","Краткие (рамочные) технические характеристики","Вид","Количество","Единица измерения","Итоговое количество","Рекомендации представителей индустрии (указывается конкретное оборудование)"]
[1,"Стол ","(ШхГхВ) 1200х700х750","Мебель",1,"шт",5]
[2,"Стул ","с подлокотниками и регулировкой по высоте","Мебель",1,"шт",5]
[3,"Компьютер ","\nпроцессор: AMD Ryzen 3 3200G\nоперативная память: DDR4 32 ГБ\nвидеокарта: MSI GeForce RTX5050 8192MB\nтвердотельный накопитель: SSD 240GB\nоперационная система Win 10 Pro  ","Оборудование IT",1,"шт",5]
[4,"Монитор","Monitor: Philips 223V5L диагональ 22\" , разрешение 1920x1080 Full HD (16:9) ","IT-оборудование",2,"шт",10]
[5,"Клавиатура","офисная, проводная","Оборудование IT",1,"шт",5]
[6,"Мышь компьютерная - тип 2","офисная, проводная","Оборудование IT",1,"шт",5]
[7,"Удлинители сетевые","6 розеток, 5 метров","IT-оборудование",1,"шт",5]
[8,"Кабель для монитора DisplayPort-HDMI","DisplayPort-HDMI","IT-оборудование",1,"шт",5]
[9,"Программное обеспечение для BIM-моделирования","- программное обеспечение обеспечивающее совместную одновременную работу над проектом;\n- параллельная работа над одним BIM-проектом;\n- наличие механизма синхронизации BIM-модели;\n- наличие Renga Colaboration Server","Программное обеспечение",1,"шт",5,"Renga"]
[10,"Программное обеспечение для создания среды общих данных","- наличие модуля TASQ для календарно-ресурсного планирования;","Программное обеспечение",1,"шт",5,"Pilot-BIM (с модулем TASQ)"]
[11,"Программное обеспечение для координации BIM-моделей","- Автоматизированная сборка консолидированной BIM-модели из частей, созданных в разных CAD-системах;\n- автоматическая проверка на коллизии;\n- сравнение версий модели;\n- ведение истории изменения модели.","Программное обеспечение",1,"шт",5,"Pilot-BIM "]
[12,"Комплект разработчика шаблона стиля","- на языке Lua","Программное обеспечение",1,"шт",5,"Renga STDL SDK"]
[13,"Редактор кода для кроссплатформенной разработки веб- и облачных приложений",null,"Программное обеспечение",1,"шт",5,"Visual Studio Code с  Snippet LUA"]
[14,"Программное обеспечение для просмотра BIM-моделей","Только просмотр","Программное обеспечение",1,"шт",5,"Pilot-BIM "]
[15,"Программное обеспечение для проверки BIM-модели на коллизии",null,"Программное обеспечение",1,"шт",5,"Pilot-BIM "]
[16,"Программное обеспечение для просмотра файлов с расширением pdf","Только просмотр","Программное обеспечение",1,"шт",5,"Acrobat Reader "]
[17,"Программное обеспечение для просмотра файлов с расширением doc (docx), PowerPoint (ppt)","Просмотр и редактирование файлов формата doc (docx), PowerPoint (ppt)","Программное обеспечение",1,"шт",5,"MS Office"]
[18,"Операционная система","Windows Professional","Программное обеспечение",1,"шт",5]
["Охрана труда и техника безопасности"]
["№","Наименование ","Краткие (рамочные) технические характеристики","Вид","Количество","Единица измерения","Итоговое количество","Рекомендации представителей индустрии (указывается конкретное оборудование)"]
[1,"Аптечка первой медицинской помощи","Базовая","Безопасность и здоровье",1,"шт",1]
[2,"Огнетушитель","Порошковый","Безопасность и здоровье",1,"шт",1]
[3,"Мусорная корзина","Офисная","Оборудование и инструменты",1,"шт",2]
[4,"Кулер 19 л (холодная/горячая вода)","Офисный","Оборудование и инструменты",1,"шт",1]

{"sheet":"Расходные материалы","index":3,"n_rows":34,"n_cols":8,"rows_kept":34,"merged":[[0,0,0,7],[1,0,1,7],[2,0,2,7],[3,0,3,7],[4,0,4,7],[5,0,5,7],[6,0,6,1],[6,2,6,7],[7,0,7,2],[7,3,7,7],[8,0,8,1],[8,2,8,7],[9,0,9,1],[9,2,9,3],[9,4,9,5],[9,6,9,7],[10,0,10,1],[10,2,10,3],[10,4,10,5],[10,6,10,7],[11,0,11,1],[11,2,11,7],[12,0,12,1],[12,2,12,7],[13,0,13,1],[13,2,13,7],[14,0,14,1],[14,2,14,7],[15,0,15,7],[21,0,21,7],[29,0,29,7]]}
["ПРОЕКТ"]
["Инфраструктурный лист для оснащения конкурсной площадки"]
[{"$f":"'Информация о Чемпионате'!B4","v":"Региональный этап Чемпионата по профессиональному мастерству \"Профессионалы\""}]
["по компетенции"]
[{"$f":"'Информация о Чемпионате'!B3","v":"Технологии информационного моделирования BIM\n"}]
["Основная информация о конкурсной площадке:"]
["Субъект Российской Федерации:",null,{"$f":"'Информация о Чемпионате'!B5","v":"Республика Карелия"}]
["Базовая организация расположения конкурсной площадки:",null,null,{"$f":"'Информация о Чемпионате'!B6","v":"ГАПОУ РК \"Петрозаводский архитектурно-строительный техникум\""}]
["Адрес базовой организации: ",null,{"$f":"'Информация о Чемпионате'!B7","v":"г. Петрозаводск, пр. Первомайский, д. 56"}]
["Главный эксперт: ",null,{"$f":"'Информация о Чемпионате'!B9","v":"Белокурова Ангелина Владимировна"},null,{"$f":"'Информация о Чемпионате'!B10","v":"Angelina-Bel@yandex.ru"},null,{"$f":"'Информация о Чемпионате'!B11","v":79114053641}]
["Технический администратор площадки: ",null,{"$f":"'Информация о Чемпионате'!B12","v":"Платонов Вадим Николаевич"},null,{"$f":"'Информация о Чемпионате'!B13","v":"ptghplatonov@gmail.com"},null,{"$f":"'Информация о Чемпионате'!B14","v":79212288780}]
["Количество экспертов (ЭН+ГЭ+ИЭ) + ТАП:",null,{"$f":"'Информация о Чемпионате'!B17","v":8}]
["Количество конкурсантов: ",null,{"$f":"'Информация о Чемпионате'!B15","v":5}]
["Количество рабочих мест: ",null,{"$f":"'Информация о Чемпионате'!B16","v":5}]
["Даты проведения: ",null,{"$f":"'Информация о Чемпионате'!B8","v":"13.02.2026-20.02.2026"}]
["Рабочее место Конкурсанта (расходные материалы по количеству конкурсантов)"]
["№","Наименование ","Краткие (рамочные) технические характеристики","Вид","Количество","Единица измерения","Итоговое количество","Рекомендации представителей индустрии (указывается конкретное оборудование)"]
[1,"Бумага","А4, белая. Пачка бумаги",null,1,"пачка",5]
[2,"Блокнот А4","Офисный блокнот",null,1,"шт",5,"Допустим формат А5"]
[3,"Ручка шариковая","Офисная синяя ручка",null,1,"шт",5]
[4,"Текстовыделители","Офисные текстовыделители",null,1,"шт",5]
["Расходные материалы на всех конкурсантов и экспертов"]
["№","Наименование ","Краткие (рамочные) технические характеристики","Вид","Количество","Единица измерения","Итоговое количество","Рекомендации представителей индустрии (указывается конкретное оборудование)"]
[1,"Бумага","А4, белая. Пачка бумаги",null,1,"пачка",6]
[2,"Блокнот А4","Офисный блокнот",null,1,"шт",13,"Допустим формат А5"]
[3,"Ручка шариковая","Офисная синяя ручка",null,1,"шт",13]
[4,"Текстовыделители","Офисные текстовыделители",null,1,"шт",10]
[5,"Кулер 19 л (холодная/горячая вода)","Офисный",null,1,"шт",1]
[6,"Стаканчики для воды","Подходящие под кулер",null,100,"шт",100]
["Охрана труда и техника безопасности"]
["№","Наименование ","Краткие (рамочные) технические характеристики","Вид","Количество","Единица измерения","Итоговое количество","Рекомендации представителей индустрии (указывается конкретное оборудование)"]
[1,"Аптечка первой медицинской помощи","Базовая",null,1,"шт",1]
[2,"Огнетушитель","Порошковый",null,1,"шт",1]
[3,"Мусорная корзина","офисная",null,1,"шт",2]

{"sheet":"Личный инструмент конкурсанта","index":4,"n_rows":13,"n_cols":7,"rows_kept":13,"merged":[[0,0,0,6],[1,0,1,6],[2,0,2,6],[3,0,3,6],[4,0,4,6],[5,0,5,6]]}
["ПРОЕКТ"]
["Инфраструктурный лист для оснащения конкурсной площадки"]
[{"$f":"'Информация о Чемпионате'!B4","v":"Региональный этап Чемпионата по профессиональному мастерству \"Профессионалы\""}]
["по компетенции"]
[{"$f":"'Информация о Чемпионате'!B3","v":"Технологии информационного моделирования BIM\n"}]
["Личный инструмент конкурсанта"]
["№","Наименование ","Краткие (рамочные) технические характеристики","Вид","Количество","Единица измерения","Примечание "]
[1,"Нулевой тулбокс"]
[2]
[3]
[4]
[5]
[6]